fUSD/lending_fUSD_20250928
["ID","MTS","AMOUNT","RATE_DAILY","PERIOD"]
[388334244,1759103433360,-69.29176747,0.00017989,2]
[388334245,1759103433371,-430.70823253,0.00017989,2]
[388334246,1759103433380,-107.14567986,0.00017989,2]
[388334247,1759103433457,-392.85432014,0.00017989,2]
[388334248,1759103433467,-91.64236908,0.00017989,2]
[388334249,1759103433478,-408.35763092,0.00017989,2]
[388334250,1759103433488,-500.0,0.00017989,2]
[388334251,1759103433497,-500.0,0.00017989,2]
[388334252,1759103433507,-500.0,0.00017989,2]
[388334253,1759103433516,-500.0,0.00017989,2]
[388334254,1759103433525,-500.0,0.00017989,2]
[388334255,1759103433534,-500.0,0.00017989,2]
[388334256,1759103433543,-166.69379267,0.00017999,2]
[388334257,1759103433555,-1244.29344645,0.00017999,2]
[388334258,1759103433564,-193.43921441,0.00017999,2]
[388334259,1759103433573,-161.4961581,0.00017999,2]
[388334260,1759103433582,-180.95046278,0.00017999,2]
[388334261,1759103433591,-253.96401126,0.00017999,2]
[388334262,1759103433602,-246.03598874,0.00017999,2]
[388334263,1759103433612,-257.28015158,0.00017999,2]
[388334264,1759103433621,-596.02609532,0.00017999,2]
[388334265,1759103433630,-1899.54292267,0.00018,2]
[388334266,1759103433641,-769.71316237,0.00018,2]
[388334267,1759103433822,-71035.74391496,0.00018,2]
[388334268,1759103433832,-50000.0,0.00018,2]
[388334269,1759103433841,-200.0,0.00018,2]
[388334270,1759103433851,-769.0,0.00018022,2]
[388334271,1759103433862,-1410.98723912,0.00018048,2]
[388334272,1759103433872,-1410.98723912,0.00018097,2]
[388334273,1759103433883,-269.4,0.00018098,2]
[388334274,1759103433894,-169.0,0.00018146,2]
[388334275,1759103433903,-1410.98723912,0.00018147,2]
[388334276,1759103433912,-769.0,0.00018177,2]
[388334277,1759103433922,-1410.98723912,0.00018196,2]
[388334278,1759103433933,-769.0,0.00018231,2]
[388334279,1759103433942,-1410.98723912,0.00018245,2]
[388334280,1759103433951,-804.09963811,0.0001826,2]
[388334281,1759103433961,-1410.98723912,0.00018295,2]
[388334282,1759103433971,-619.3586576,0.00018318,2]
[388334283,1759103433980,-1856.2990317,0.00018318,2]
[388334284,1759103433989,-461.02756716,0.00018318,2]
[388334285,1759103433998,-183.084074,0.00018319,2]
[388334286,1759103434007,-656.21717579,0.00018319,2]
[388334287,1759103434016,-192.76746656,0.00018319,2]
[388334288,1759103434026,-1856.29903163,0.00018324,2]
[388334289,1759103434035,-169.0,0.00018328,2]
[388334290,1759103434044,-1856.29903163,0.0001833,2]
[388334291,1759103434054,-1856.29903163,0.00018336,2]
[388334292,1759103434063,-1856.29903163,0.00018342,2]
[388334293,1759103434072,-1410.98723912,0.00018344,2]
[388334294,1759103434081,-1856.29903163,0.00018348,2]
[388334295,1759103434090,-1856.29903163,0.00018354,2]
[388334296,1759103434099,-1856.29903163,0.0001836,2]
[388334297,1759103434108,-1856.29903163,0.00018366,2]
[388334298,1759103434118,-1856.29903163,0.00018372,2]
[388334299,1759103434127,-191.51334906,0.00018372,3]
[388334300,1759103434136,-447.6536405,0.00018372,2]
[388334301,1759103434146,-193.8723568,0.00018372,2]
[388334302,1759103434156,-178.51990701,0.00018378,2]
[388334303,1759103434165,-192.76746652,0.00018395,2]
[388334304,1759103434176,-461.02756715,0.00018402,2]
[388334305,1759103434186,-1985.66,0.00018408,2]
[388334306,1759103434196,-1985.66,0.00018408,2]
[388334307,1759103434205,-172.15348089,0.00018409,2]
[388334308,1759103434215,-151.0,0.00018415,2]
[388334309,1759103434225,-293.79088169,0.00018415,2]
[388334310,1759103434235,-32376.8479198,0.00018417,2]
[388334311,1759103434245,-300.0,0.00018418,2]
[388334312,1759103434258,-666.0,0.00018418,2]
[388334313,1759103434273,-3070.20432173,0.00018418,2]
[388334314,1759103434285,-642207.79610136,0.00018418,2]
[388334315,1759103434295,-300.0,0.00018418,2]
[388334316,1759103434304,-666.0,0.00018418,2]
[388334317,1759103434314,-300.0,0.00018418,2]
[388334318,1759103434323,-446.47621105,0.00018419,2]
[388334319,1759103434333,-666.0,0.00018419,2]
[388334320,1759103434342,-300.0,0.00018419,2]
[388334321,1759103434351,-300.0,0.00018419,2]
[388334322,1759103434361,-666.0,0.00018419,2]
[388334323,1759103434370,-300.0,0.00018419,2]
[388334324,1759103434379,-594.55053329,0.00018419,2]
[388334325,1759103434389,-300.0,0.00018419,2]
[388334326,1759103434399,-300.0,0.00018419,2]
[388334327,1759103434409,-300.0,0.00018419,2]
[388334328,1759103434418,-1231388.05014195,0.00018419,2]
[388334329,1759103434432,-2741.16468483,0.00018419,2]
[388334330,1759103434515,-26195.80189138,0.00018419,2]
[388334331,1759103434526,-300.0,0.00018419,2]
[388334680,1759103440997,-362.64,0.00017129,2]
[388334682,1759103441006,-167.40548708,0.00018318,2]
[388334684,1759103441015,-166.76,0.00018407,2]
[388334685,1759103441024,-166.76,0.00018408,2]
[388334687,1759103441033,-208.78451292,0.00018419,2]
[388334697,1759103441115,-261.52156641,0.00018419,2]
[388334699,1759103441126,-3782.26778049,0.00018419,2]
[388334711,1759103441225,-74366.13591653,0.00018419,2]
[388334713,1759103441237,-917.54511471,0.00018419,2]
[388334715,1759103441247,-1342.29539834,0.00018419,2]
[388334718,1759103441258,-7407.99859993,0.00018419,2]
[388334720,1759103441270,-4712.62579405,0.00018419,2]
[388334722,1759103441281,-3585.55925969,0.00018419,2]
[388334806,1759103442065,-628.73244732,0.00018419,2]
[388334808,1759103442076,-733.34319567,0.00018419,2]
[388334865,1759103442566,-967.54661949,0.00018419,2]
[388335061,1759103444549,-12802.81199999,0.00018419,2]
[388335064,1759103444560,-625.42636932,0.00018419,2]
[388335066,1759103444571,-24923.5810752,0.00018419,2]
[388335115,1759103445017,-476.1899999,0.00018419,2]
[388335117,1759103445028,-15147.38809945,0.00018419,2]
[388335126,1759103445092,-2566.73593439,0.00018419,2]
[388335128,1759103445105,-43525.58431961,0.00018419,2]
[388335130,1759103445119,-14661.15608252,0.00018419,2]
[388335133,1759103445130,-5122.12676512,0.00018419,2]
[388335135,1759103445141,-1034.355,0.00018419,2]
[388335137,1759103445152,-980.40488414,0.00018419,2]
[388335153,1759103445289,-188453.89127909,0.00018419,2]
[388335155,1759103445298,-151.0,0.00018419,2]
[388335157,1759103445307,-151.0,0.00018419,2]
[388335159,1759103445317,-151.0,0.00018419,2]
[388335161,1759103445326,-151.0,0.00018419,2]
[388335163,1759103445335,-165.269958,0.00018419,2]
[388335165,1759103445344,-151.0,0.00018419,2]
[388335167,1759103445353,-151.0,0.00018419,2]
[388335169,1759103445363,-151.0,0.00018419,2]
[388335171,1759103445372,-151.0,0.00018419,2]
[388335173,1759103445381,-151.0,0.00018419,2]
[388335175,1759103445391,-151.0,0.00018419,2]
[388335177,1759103445400,-151.0,0.00018419,2]
[388335179,1759103445409,-151.0,0.00018419,2]
[388335181,1759103445418,-151.0,0.00018419,2]
[388335183,1759103445429,-151.0,0.00018419,2]
[388335185,1759103445439,-151.0,0.00018419,2]
[388335187,1759103445449,-151.0,0.00018419,2]
[388335189,1759103445458,-151.0,0.00018419,2]
[388335191,1759103445467,-151.0,0.00018419,2]
[388335193,1759103445475,-151.0,0.00018419,2]
[388335195,1759103445485,-151.0,0.00018419,2]
[388335197,1759103445495,-151.0,0.00018419,2]
[388335199,1759103445504,-151.0,0.00018419,2]
[388335201,1759103445513,-151.0,0.00018419,2]
[388335203,1759103445522,-151.0,0.00018419,2]
[388335205,1759103445532,-151.0,0.00018419,2]
[388335207,1759103445541,-151.0,0.00018419,2]
[388335209,1759103445550,-558.114784,0.00018419,2]
[388335211,1759103445560,-151.0,0.00018419,2]
[388335213,1759103445570,-151.0,0.00018419,2]
[388335215,1759103445579,-174.461453,0.00018419,2]
[388335217,1759103445589,-151.0,0.00018419,2]
[388335219,1759103445598,-558.114784,0.00018419,2]
[388335221,1759103445607,-151.0,0.00018419,2]
[388335223,1759103445616,-151.0,0.00018419,2]
[388335225,1759103445626,-151.0,0.00018419,2]
[388335227,1759103445635,-558.114784,0.00018419,2]
[388335229,1759103445644,-151.0,0.00018419,2]
[388335231,1759103445653,-151.0,0.00018419,2]
[388335233,1759103445663,-151.0,0.00018419,2]
[388335235,1759103445672,-558.114784,0.00018419,2]
[388335237,1759103445681,-151.0,0.00018419,2]
[388335239,1759103445691,-316.995188,0.00018419,2]
[388335241,1759103445700,-151.0,0.00018419,2]
[388335243,1759103445709,-316.995188,0.00018419,2]
[388335245,1759103445718,-161.434939,0.00018419,2]
[388335247,1759103445727,-316.995188,0.00018419,2]
[388335249,1759103445735,-151.0,0.00018419,2]
[388335251,1759103445744,-161.434939,0.00018419,2]
[388335253,1759103445753,-316.995188,0.00018419,2]
[388335255,1759103445764,-151.0,0.00018419,2]
[388335257,1759103445773,-161.434939,0.00018419,2]
[388335259,1759103445782,-151.0,0.00018419,2]
[388335261,1759103445792,-151.0,0.00018419,2]
[388335263,1759103445801,-151.0,0.00018419,2]
[388335265,1759103445809,-161.434939,0.00018419,2]
[388335267,1759103445819,-151.0,0.00018419,2]
[388335269,1759103445829,-151.0,0.00018419,2]
[388335271,1759103445838,-151.0,0.00018419,2]
[388335273,1759103445847,-151.0,0.00018419,2]
[388335275,1759103445856,-151.0,0.00018419,2]
[388335277,1759103445865,-151.0,0.00018419,2]
[388335279,1759103445875,-151.0,0.00018419,2]
[388335281,1759103445885,-151.0,0.00018419,2]
[388335283,1759103445904,-151.0,0.00018419,2]
[388335285,1759103445916,-151.0,0.00018419,2]
[388335287,1759103445925,-151.0,0.00018419,2]
[388335289,1759103445934,-151.0,0.00018419,2]
[388335291,1759103445944,-151.0,0.00018419,2]
[388335293,1759103445953,-151.0,0.00018419,2]
[388335295,1759103445961,-151.0,0.00018419,2]
[388335297,1759103445970,-151.0,0.00018419,2]
[388335299,1759103445980,-151.0,0.00018419,2]
[388335301,1759103445989,-151.0,0.00018419,2]
[388335303,1759103445998,-302.746426,0.00018419,2]
[388335305,1759103446007,-151.0,0.00018419,2]
[388335307,1759103446016,-302.746426,0.00018419,2]
[388335309,1759103446025,-302.746426,0.00018419,2]
[388335311,1759103446034,-151.0,0.00018419,2]
[388335313,1759103446043,-302.746426,0.00018419,2]
[388335315,1759103446052,-151.0,0.00018419,2]
[388335317,1759103446061,-151.0,0.00018419,2]
[388335319,1759103446070,-151.0,0.00018419,2]
[388335321,1759103446079,-151.0,0.00018419,2]
[388335323,1759103446089,-151.0,0.00018419,2]
[388335325,1759103446098,-151.0,0.00018419,2]
[388335327,1759103446108,-151.0,0.00018419,2]
[388335329,1759103446117,-151.0,0.00018419,2]
[388335331,1759103446127,-151.0,0.00018419,2]
[388335333,1759103446136,-151.0,0.00018419,2]
[388335335,1759103446144,-151.0,0.00018419,2]
[388335337,1759103446154,-153.816819,0.00018419,2]
[388335339,1759103446163,-546.425035,0.00018419,2]
[388335341,1759103446172,-151.0,0.00018419,2]
[388335343,1759103446181,-151.0,0.00018419,2]
[388335345,1759103446191,-153.816819,0.00018419,2]
[388335347,1759103446200,-546.425035,0.00018419,2]
[388335349,1759103446209,-153.816819,0.00018419,2]
[388335351,1759103446218,-151.0,0.00018419,2]
[388335353,1759103446229,-546.425035,0.00018419,2]
[388335355,1759103446238,-151.0,0.00018419,2]
[388335357,1759103446247,-153.816819,0.00018419,2]
[388335359,1759103446256,-546.425035,0.00018419,2]
[388335362,1759103446265,-151.0,0.00018419,2]
[388335364,1759103446275,-331.327181,0.00018419,2]
[388335366,1759103446284,-564.116754,0.00018419,2]
[388335368,1759103446294,-564.116754,0.00018419,2]
[388335370,1759103446303,-151.0,0.00018419,2]
[388335372,1759103446312,-331.327181,0.00018419,2]
[388335374,1759103446321,-564.116754,0.00018419,2]
[388335376,1759103446331,-340.783749,0.00018419,2]
[388335378,1759103446340,-151.0,0.00018419,2]
[388335379,1759103446349,-312.911013,0.00018419,2]
[388335381,1759103446358,-331.327181,0.00018419,2]
[388335383,1759103446367,-151.0,0.00018419,2]
[388335385,1759103446376,-340.783749,0.00018419,2]
[388335388,1759103446386,-564.116754,0.00018419,2]
[388335390,1759103446395,-312.911013,0.00018419,2]
[388335391,1759103446404,-331.327181,0.00018419,2]
[388335393,1759103446413,-340.783749,0.00018419,2]
[388335396,1759103446423,-312.911013,0.00018419,2]
[388335397,1759103446433,-151.0,0.00018419,2]
[388335399,1759103446443,-340.783749,0.00018419,2]
[388335402,1759103446452,-312.911013,0.00018419,2]
[388335404,1759103446461,-151.0,0.00018419,2]
[388335406,1759103446470,-151.0,0.00018419,2]
[388335407,1759103446479,-153.180653,0.00018419,2]
[388335410,1759103446488,-196.233013,0.00018419,2]
[388335412,1759103446498,-18547.28794944,0.00018419,2]
[388335414,1759103446506,-196.233013,0.00018419,2]
[388335416,1759103446515,-151.0,0.00018419,2]
[388335418,1759103446524,-196.233013,0.00018419,2]
[388335420,1759103446534,-151.0,0.00018419,2]
[388335422,1759103446543,-358.572961,0.00018419,2]
[388335423,1759103446552,-196.233013,0.00018419,2]
[388335425,1759103446561,-358.572961,0.00018419,2]
[388335428,1759103446571,-151.0,0.00018419,2]
[388335429,1759103446580,-221.003599,0.00018419,2]
[388335432,1759103446589,-358.572961,0.00018419,2]
[388335433,1759103446598,-222.436876,0.00018419,2]
[388335436,1759103446608,-151.0,0.00018419,2]
[388335438,1759103446617,-221.003599,0.00018419,2]
[388335439,1759103446627,-358.572961,0.00018419,2]
[388335442,1759103446636,-221.003599,0.00018419,2]
[388335444,1759103446646,-221.003599,0.00018419,2]
[388335446,1759103446656,-193.558613,0.00018419,2]
[388335448,1759103446665,-151.0,0.00018419,2]
[388335449,1759103446675,-193.558613,0.00018419,2]
[388335452,1759103446684,-151.0,0.00018419,2]
[388335453,1759103446693,-151.0,0.00018419,2]
[388335455,1759103446703,-193.558613,0.00018419,2]
[388335457,1759103446712,-151.0,0.00018419,2]
[388335459,1759103446721,-151.0,0.00018419,2]
[388335462,1759103446730,-193.558613,0.00018419,2]
[388335464,1759103446740,-151.0,0.00018419,2]
[388335466,1759103446749,-151.0,0.00018419,2]
[388335468,1759103446758,-681.026094,0.00018419,2]
[388335470,1759103446767,-151.0,0.00018419,2]
[388335472,1759103446777,-681.026094,0.00018419,2]
[388335474,1759103446786,-296.098798,0.00018419,2]
[388335476,1759103446796,-151.0,0.00018419,2]
[388335478,1759103446805,-681.026094,0.00018419,2]
[388335479,1759103446814,-296.098798,0.00018419,2]
[388335482,1759103446823,-681.026094,0.00018419,2]
[388335483,1759103446832,-296.098798,0.00018419,2]
[388335486,1759103446842,-296.098798,0.00018419,2]
[388335488,1759103446851,-4011.952578,0.00018419,2]
[388335490,1759103446860,-195.119669,0.00018419,2]
[388335491,1759103446870,-716.090241,0.00018419,2]
[388335494,1759103446880,-4011.952578,0.00018419,2]
[388335496,1759103446894,-195.119669,0.00018419,2]
[388335497,1759103446903,-716.090241,0.00018419,2]
[388335499,1759103446912,-157.522373,0.00018419,2]
[388335502,1759103446922,-4011.952578,0.00018419,2]
[388335503,1759103446931,-195.119669,0.00018419,2]
[388335505,1759103446942,-716.090241,0.00018419,2]
[388335507,1759103446951,-157.522373,0.00018419,2]
[388335509,1759103446961,-151.0,0.00018419,2]
[388335512,1759103446970,-195.119669,0.00018419,2]
[388335513,1759103446979,-4011.952578,0.00018419,2]
[388335515,1759103446989,-716.090241,0.00018419,2]
[388335518,1759103446998,-157.522373,0.00018419,2]
[388335520,1759103447007,-157.522373,0.00018419,2]
[388335522,1759103447016,-151.0,0.00018419,2]
[388335523,1759103447026,-151.0,0.00018419,2]
[388335525,1759103447035,-158.927719,0.00018419,2]
[388335527,1759103447045,-151.0,0.00018419,2]
[388335529,1759103447054,-151.0,0.00018419,2]
[388335532,1759103447063,-975.808466,0.00018419,2]
[388335534,1759103447072,-12000.0,0.00018419,2]
[388335535,1759103447082,-975.808466,0.00018419,2]
[388335538,1759103447091,-151.0,0.00018419,2]
[388335540,1759103447100,-151.0,0.00018419,2]
[388335542,1759103447109,-12000.0,0.00018419,2]
[388335544,1759103447118,-975.808466,0.00018419,2]
[388335546,1759103447127,-681.675573,0.00018419,2]
[388335548,1759103447137,-333.601682,0.00018419,2]
[388335550,1759103447146,-219.386132,0.00018419,2]
[388335551,1759103447155,-12000.0,0.00018419,2]
[388335553,1759103447164,-151.0,0.00018419,2]
[388335555,1759103447173,-681.675573,0.00018419,2]
[388335557,1759103447182,-975.808466,0.00018419,2]
[388335559,1759103447192,-333.601682,0.00018419,2]
[388335561,1759103447202,-219.386132,0.00018419,2]
[388335563,1759103447211,-260.68343,0.00018419,2]
[388335565,1759103447221,-12000.0,0.00018419,2]
[388335567,1759103447229,-681.675573,0.00018419,2]
[388335569,1759103447238,-333.601682,0.00018419,2]
[388335571,1759103447248,-260.68343,0.00018419,2]
[388335574,1759103447257,-219.386132,0.00018419,2]
[388335576,1759103447267,-12000.0,0.00018419,2]
[388335578,1759103447277,-681.675573,0.00018419,2]
[388335580,1759103447286,-333.601682,0.00018419,2]
[388335581,1759103447295,-64.83607048,0.00018419,2]
[388335584,1759103447312,-195.84735952,0.00018419,2]
[388335586,1759103447321,-219.386132,0.00018419,2]
[388335588,1759103447330,-12000.0,0.00018419,2]
[388335590,1759103447339,-260.68343,0.00018419,2]
[388335592,1759103447348,-151.0,0.00018419,2]
[388335595,1759103447358,-3483.936157,0.00018419,2]
[388335597,1759103447367,-151.0,0.00018419,2]
[388335599,1759103447376,-349.258559,0.00018419,2]
[388335601,1759103447385,-151.0,0.00018419,2]
[388335603,1759103447395,-349.258559,0.00018419,2]
[388335605,1759103447404,-349.258559,0.00018419,2]
[388335607,1759103447413,-1129.150689,0.00018419,2]
[388335609,1759103447422,-349.258559,0.00018419,2]
[388335611,1759103447431,-1129.150689,0.00018419,2]
[388335613,1759103447440,-1129.150689,0.00018419,2]
[388335615,1759103447449,-151.0,0.00018419,2]
[388335617,1759103447458,-151.0,0.00018419,2]
[388335619,1759103447467,-1129.150689,0.00018419,2]
[388335621,1759103447476,-151.0,0.00018419,2]
[388335623,1759103447485,-151.0,0.00018419,2]
[388335625,1759103447494,-3483.936157,0.00018419,2]
[388335627,1759103447504,-3483.936157,0.00018419,2]
[388335629,1759103447513,-3483.936157,0.00018419,2]
[388335631,1759103447522,-151.0,0.00018419,2]
[388335633,1759103447532,-151.0,0.00018419,2]
[388335634,1759103447541,-151.0,0.00018419,2]
[388335637,1759103447550,-151.0,0.00018419,2]
[388335639,1759103447559,-194.223231,0.00018419,2]
[388335641,1759103447568,-151.0,0.00018419,2]
[388335643,1759103447578,-194.223231,0.00018419,2]
[388335645,1759103447588,-4907.53318,0.00018419,2]
[388335647,1759103447597,-194.223231,0.00018419,2]
[388335649,1759103447606,-151.0,0.00018419,2]
[388335651,1759103447615,-194.223231,0.00018419,2]
[388335653,1759103447624,-151.0,0.00018419,2]
[388335655,1759103447633,-3634.392092,0.00018419,2]
[388335657,1759103447643,-267.415989,0.00018419,2]
[388335659,1759103447651,-3634.392092,0.00018419,2]
[388335661,1759103447660,-1908.987923,0.00018419,2]
[388335663,1759103447671,-267.415989,0.00018419,2]
[388335665,1759103447680,-3634.392092,0.00018419,2]
[388335667,1759103447689,-1908.987923,0.00018419,2]
[388335669,1759103447698,-267.415989,0.00018419,2]
[388335670,1759103447706,-3634.392092,0.00018419,2]
[388335671,1759103447716,-266.08975,0.00018419,2]
[388335672,1759103447725,-1908.987923,0.00018419,2]
[388335673,1759103447735,-267.415989,0.00018419,2]
[388335674,1759103447745,-181.123354,0.00018419,2]
[388335675,1759103447754,-1908.987923,0.00018419,2]
[388335676,1759103447763,-266.08975,0.00018419,2]
[388335677,1759103447772,-151.0,0.00018419,2]
[388335678,1759103447782,-216.219742,0.00018419,2]
[388335679,1759103447792,-181.123354,0.00018419,2]
[388335680,1759103447800,-266.08975,0.00018419,2]
[388335681,1759103447810,-151.0,0.00018419,2]
[388335682,1759103447819,-216.219742,0.00018419,2]
[388335683,1759103447828,-181.123354,0.00018419,2]
[388335684,1759103447837,-266.08975,0.00018419,2]
[388335685,1759103447846,-216.219742,0.00018419,2]
[388335687,1759103447856,-181.123354,0.00018419,2]
[388335689,1759103447865,-2302.089796,0.00018419,2]
[388335691,1759103447874,-216.219742,0.00018419,2]
[388335693,1759103447885,-2302.089796,0.00018419,2]
[388335695,1759103447898,-172.668943,0.00018419,2]
[388335697,1759103447907,-2302.089796,0.00018419,2]
[388335699,1759103447916,-172.668943,0.00018419,2]
[388335701,1759103447925,-151.0,0.00018419,2]
[388335703,1759103447937,-2302.089796,0.00018419,2]
[388335705,1759103447946,-151.0,0.00018419,2]
[388335707,1759103447955,-172.668943,0.00018419,2]
[388335709,1759103447967,-151.0,0.00018419,2]
[388335711,1759103447976,-195.66879,0.00018419,2]
[388335713,1759103447985,-172.668943,0.00018419,2]
[388335715,1759103447994,-151.0,0.00018419,2]
[388335717,1759103448004,-195.66879,0.00018419,2]
[388335719,1759103448013,-151.0,0.00018419,2]
[388335721,1759103448022,-195.66879,0.00018419,2]
[388335723,1759103448031,-195.66879,0.00018419,2]
[388335725,1759103448040,-197.105755,0.00018419,2]
[388335727,1759103448049,-197.105755,0.00018419,2]
[388335729,1759103448058,-197.105755,0.00018419,2]
[388335731,1759103448067,-457.171938,0.00018419,2]
[388335733,1759103448077,-197.105755,0.00018419,2]
[388335735,1759103448086,-457.171938,0.00018419,2]
[388335737,1759103448096,-457.171938,0.00018419,2]
[388335739,1759103448105,-457.171938,0.00018419,2]
[388335741,1759103448114,-2573.070153,0.00018419,2]
[388335743,1759103448124,-151.0,0.00018419,2]
[388335745,1759103448133,-2573.070153,0.00018419,2]
[388335747,1759103448142,-151.0,0.00018419,2]
[388335749,1759103448151,-2573.070153,0.00018419,2]
[388335751,1759103448160,-2573.070153,0.00018419,2]
[388335753,1759103448169,-151.0,0.00018419,2]
[388335755,1759103448178,-151.0,0.00018419,2]
[388335757,1759103448188,-151.0,0.00018419,2]
[388335759,1759103448197,-151.0,0.00018419,2]
[388335761,1759103448206,-151.0,0.00018419,2]
[388335763,1759103448215,-1016.052011,0.00018419,2]
[388335765,1759103448225,-151.0,0.00018419,2]
[388335767,1759103448234,-1016.052011,0.00018419,2]
[388335769,1759103448243,-1016.052011,0.00018419,2]
[388335771,1759103448252,-1016.052011,0.00018419,2]
[388335773,1759103448262,-555.377753,0.00018419,2]
[388335775,1759103448271,-555.377753,0.00018419,2]
[388335777,1759103448280,-555.377753,0.00018419,2]
[388335779,1759103448289,-555.377753,0.00018419,2]
[388335781,1759103448299,-985.919515,0.00018419,2]
[388335783,1759103448308,-476.152962,0.00018419,2]
[388335785,1759103448317,-151.0,0.00018419,2]
[388335787,1759103448326,-476.152962,0.00018419,2]
[388335789,1759103448336,-151.0,0.00018419,2]
[388335791,1759103448345,-985.919515,0.00018419,2]
[388335793,1759103448354,-476.152962,0.00018419,2]
[388335795,1759103448364,-151.0,0.00018419,2]
[388335797,1759103448374,-985.919515,0.00018419,2]
[388335799,1759103448383,-536.609996,0.00018419,2]
[388335801,1759103448392,-476.152962,0.00018419,2]
[388335803,1759103448401,-151.0,0.00018419,2]
[388335805,1759103448410,-985.919515,0.00018419,2]
[388335807,1759103448420,-236.99984,0.00018419,2]
[388335809,1759103448429,-536.609996,0.00018419,2]
[388335811,1759103448438,-151.0,0.00018419,2]
[388335814,1759103448447,-151.0,0.00018419,2]
[388335815,1759103448456,-151.0,0.00018419,2]
[388335817,1759103448465,-99793.79609448,0.00018419,2]
[388335819,1759103448474,-980401.40023772,0.00018419,2]
[388335829,1759103448553,-2709.95238278,0.00018419,2]
[388335832,1759103448567,-410.03247435,0.00018419,2]
[388336097,1759103451130,-776.27,0.00017989,2]
[388336099,1759103451140,-551.75856596,0.00018263,2]
[388336410,1759103454173,-224.51143404,0.00018263,2]
[388336412,1759103454182,-151.0,0.00018419,2]
[388336414,1759103454193,-536.609996,0.00018419,2]
[388336416,1759103454203,-151.0,0.00018419,2]
[388336418,1759103454212,-536.609996,0.00018419,2]
[388336420,1759103454223,-6332.49,0.00018419,2]
[388336422,1759103454233,-294.240572,0.00018419,2]
[388336424,1759103454242,-151.0,0.00018419,2]
[388336426,1759103454252,-216304.33105021,0.00018419,2]
[388336433,1759103454308,-6862.08509759,0.00018419,2]
[388336436,1759103454319,-16887.68498501,0.00018419,2]
[388336443,1759103454374,-5859.05321084,0.00018419,2]
[388336445,1759103454385,-5008.6315862,0.00018419,2]
[388336462,1759103454540,-16877.7329558,0.00018419,2]
[388337081,1759103460813,294.833941,0.000245,30]
[388337474,1759103480089,421.668631,0.000245,30]
[388337475,1759103492508,648.819309,0.000245,30]
[388337476,1759103512238,923.073175,0.000245,30]
[388337479,1759103555287,998.144181,0.000245,30]
[388337480,1759103570009,200.0,0.000245,30]
[388337481,1759103574137,670.874365,0.000245,30]
[388337482,1759103594985,509.242621,0.000245,30]
[388337483,1759103599547,500.0,0.00030137,120]
[388337484,1759103599727,37131.42309017,0.00030137,120]
[388337485,1759103616025,409.113031,0.000245,30]
[388337486,1759103637168,314.577202,0.000245,30]
[388337487,1759103676372,257.058776,0.000245,30]
[388337488,1759103696026,266.959879,0.000245,30]
[388337489,1759103715704,327.251011,0.000245,30]
[388337490,1759103741284,487.857436,0.000245,30]
[388337491,1759103763129,642.429434,0.000245,30]
[388337492,1759103795661,759.018156,0.000245,30]
[388337493,1759103818980,693.399913,0.000245,30]
[388337494,1759103838869,592.001,0.000245,30]
[388337495,1759103858212,495.165772,0.000245,30]
[388337496,1759103878700,403.123713,0.000245,30]
[388337497,1759103917266,328.57279,0.000245,30]
[388337498,1759103938417,290.784714,0.000245,30]
[388337499,1759103957004,293.739844,0.000245,30]
[388337500,1759103979771,359.637287,0.000245,30]